bitfinex/quotes_SOLUSD_20241218
["timestamp","ask_amount","ask_price","bid_price","bid_amount"]
[1734529894070,14.10548238,216.36,216.29,14.10548238]
[1734529895942,14.10548238,216.35,216.28,14.66852698]
[1734529896128,14.10548238,216.33,216.28,0.5630446]
[1734529896336,14.10548238,216.31,216.28,0.5630446]
[1734529897154,14.10548238,216.32,216.28,0.5630446]
[1734529897471,14.10548238,216.33,216.28,0.5630446]
[1734529897614,44.10548238,216.34,216.28,0.5630446]
[1734529898976,14.10548238,216.33,216.28,0.5630446]
[1734529899742,14.10548238,216.32,216.28,0.5630446]
[1734529899946,14.10548238,216.33,216.28,0.5630446]
[1734529901212,30.0,216.34,216.28,14.66852698]
[1734529901537,14.10548238,216.33,216.28,0.5630446]
[1734529901750,14.10548238,216.32,216.28,0.5630446]
[1734529902038,14.10548238,216.33,216.28,0.5630446]
[1734529903228,30.0,216.34,216.28,0.5630446]
[1734529903229,14.10548238,216.34,216.28,0.5630446]
[1734529903433,14.10548238,216.36,216.29,14.10548238]
[1734529903643,14.10548238,216.35,216.28,14.66852698]
[1734529904146,14.10548238,216.36,216.29,14.10548238]
[1734529906032,14.10548238,216.35,216.28,14.66852698]
[1734529906204,14.10548238,216.31,216.28,0.5630446]
[1734529906400,14.10548238,216.3,216.28,0.5630446]
[1734529906596,14.10548238,216.29,216.28,0.5630446]
[1734529906913,44.10548238,216.29,216.28,0.5630446]
[1734529907127,68.00785638,216.29,216.28,0.5630446]
[1734529907289,95.61785638,216.29,216.28,0.5630446]
[1734529911001,103.14050715,216.29,216.28,0.5630446]
[1734529911623,117.24598953,216.29,216.28,0.5630446]
[1734529911821,122.04094405,216.29,216.28,0.5630446]
[1734529912149,103.14050715,216.29,216.28,0.5630446]
[1734529912453,95.61785638,216.29,216.28,0.5630446]
[1734529915749,44.10548238,216.29,216.28,0.5630446]
[1734529916059,14.10548238,216.31,216.28,0.5630446]
[1734529916413,14.10548238,216.32,216.28,0.5630446]
[1734529916619,14.10548238,216.35,216.28,14.66852698]
[1734529916927,14.10548238,216.37,216.3,14.10548238]
[1734529917125,14.10548238,216.35,216.28,14.66852698]
[1734529917619,14.10548238,216.35,216.29,14.10548238]
[1734529918037,14.10548238,216.36,216.29,14.10548238]
[1734529919557,14.10548238,216.37,216.3,14.10548238]
[1734529919733,14.10548238,216.39,216.32,14.10548238]
[1734529921265,14.10548238,216.38,216.31,20.53698238]
[1734529921463,14.10548238,216.37,216.31,6.4315]
[1734529921762,30.0,216.41,216.34,14.10548238]
[1734529921927,44.10548238,216.41,216.35,14.10548238]
[1734529922557,44.10548238,216.41,216.34,14.10548238]
[1734529922805,14.10548238,216.4,216.33,14.10548238]
[1734529923136,44.10548238,216.41,216.34,14.10548238]
[1734529924176,14.10548238,216.37,216.31,6.4315]
[1734529924475,14.10548238,216.36,216.31,6.4315]
[1734529925331,14.10548238,216.36,216.28,14.66852698]
[1734529925531,14.10548238,216.33,216.28,0.5630446]
[1734529926465,14.10548238,216.32,216.28,0.5630446]
[1734529927276,14.10548238,216.29,216.28,0.5630446]
[1734529927778,67.88236638,216.29,216.28,0.5630446]
[1734529928144,44.10548238,216.29,216.28,0.5630446]
[1734529928363,14.10548238,216.33,216.28,0.5630446]
[1734529928757,14.10548238,216.35,216.28,14.66852698]
[1734529928965,14.10548238,216.36,216.28,14.66852698]
[1734529929370,14.10548238,216.35,216.28,14.66852698]
[1734529929553,14.10548238,216.36,216.29,14.10548238]
[1734529930251,14.10548238,216.35,216.28,14.66852698]
[1734529930677,14.10548238,216.35,216.28,0.5630446]
[1734529930978,14.10548238,216.35,216.28,14.66852698]
[1734529931282,14.10548238,216.36,216.29,14.10548238]
[1734529931497,14.10548238,216.36,216.28,14.66852698]
[1734529931852,14.10548238,216.35,216.28,14.66852698]
[1734529933370,14.10548238,216.33,216.28,0.5630446]
[1734529937188,44.10548238,216.34,216.28,0.5630446]
[1734529938590,14.10548238,216.34,216.28,0.5630446]
[1734529938789,44.10548238,216.36,216.28,14.66852698]
[1734529939087,14.10548238,216.34,216.28,0.5630446]
[1734529939873,14.10548238,216.33,216.28,0.5630446]
[1734529940403,14.10548238,216.3,216.28,0.5630446]
[1734529940576,14.10548238,216.29,216.28,0.5630446]
[1734529940784,38.00785638,216.29,216.28,0.5630446]
[1734529942498,30.0,216.3,216.28,0.5630446]
[1734529942499,44.10548238,216.3,216.28,0.5630446]
[1734529943692,30.0,216.33,216.28,0.5630446]
[1734529943904,44.10548238,216.33,216.28,0.5630446]
[1734529945004,14.10548238,216.32,216.28,0.5630446]
[1734529945340,14.10548238,216.29,216.28,0.5630446]
[1734529945597,38.00785638,216.29,216.28,0.5630446]
[1734529946465,44.10548238,216.3,216.28,0.5630446]
[1734529946778,14.10548238,216.29,216.28,0.5630446]
[1734529946978,14.10548238,216.32,216.28,0.5630446]
[1734529947180,44.10548238,216.33,216.28,0.5630446]
[1734529948508,21.62813315,216.35,216.28,14.66852698]
[1734529948691,30.0,216.36,216.3,14.10548238]
[1734529949234,44.10548238,216.36,216.29,14.10548238]
[1734529951722,44.10548238,216.39,216.33,14.10548238]
[1734529951929,14.10548238,216.4,216.34,14.10548238]
[1734529952124,14.10548238,216.4,216.33,14.10548238]
[1734529952293,30.0,216.42,216.36,14.10548238]
[1734529952491,51.27907669,216.46,216.39,14.10548238]
[1734529952906,14.10548238,216.44,216.37,14.10548238]
[1734529953119,14.10548238,216.41,216.35,14.10548238]
[1734529953312,14.10548238,216.4,216.33,14.10548238]
[1734529954836,14.10548238,216.41,216.34,14.10548238]
[1734529955020,14.10548238,216.42,216.36,14.10548238]
[1734529956245,14.10548238,216.42,216.35,14.10548238]
[1734529956429,14.10548238,216.41,216.34,14.10548238]
[1734529956642,14.10548238,216.39,216.32,14.10548238]
[1734529956848,14.10548238,216.35,216.3,6.2252]
[1734529957055,14.10548238,216.33,216.28,0.5630446]
[1734529958148,44.10548238,216.32,216.28,0.5630446]
[1734529959766,14.10548238,216.31,216.28,0.5630446]
[1734529959930,67.88236638,216.29,216.28,0.5630446]
[1734529960238,68.00785638,216.29,216.28,0.5630446]
[1734529963253,68.00785638,216.29,216.21,10.0]
[1734529963254,30.0,216.23,216.21,10.0]
[1734529963432,38.00785638,216.22,216.21,10.0]
[1734529964454,65.76785638,216.22,216.21,10.0]
[1734529964822,72.6020182,216.22,216.21,10.0]
[1734529965258,30.0,216.13,216.06,2.0783446]
[1734529965533,14.10548238,216.14,216.07,14.10548238]
[1734529965740,30.0,216.13,216.08,14.10548238]
[1734529965933,30.0,216.13,216.08,22.61226611]
[1734529967350,53.776884,216.12,216.06,23.17531071]
[1734529967724,76.38915011,216.12,216.06,0.5630446]
[1734529967931,22.61226611,216.14,216.07,22.61226611]
[1734529969862,22.61226611,216.15,216.08,22.61226611]
[1734529970157,22.61226611,216.16,216.09,22.61226611]
[1734529970363,22.61226611,216.17,216.1,22.61226611]
[1734529970565,22.61226611,216.17,216.06,0.5630446]
[1734529970566,22.61226611,216.15,216.08,22.61226611]
[1734529970861,22.61226611,216.13,216.06,23.17531071]
[1734529974377,22.61226611,216.09,216.06,0.5630446]
[1734529974537,22.61226611,216.08,216.06,0.5630446]
[1734529975236,52.61226611,216.08,216.06,0.5630446]
[1734529975764,96.41774011,216.07,216.06,0.5630446]
[1734529975940,96.41774011,216.07,215.89,22.61226611]
[1734529975941,22.61226611,215.96,215.89,22.61226611]
[1734529976363,52.61226611,215.98,215.89,22.61226611]
[1734529977154,30.0,215.95,215.89,22.61226611]
[1734529977538,30.0,215.95,215.88,32.11226611]
[1734529977877,52.61226611,215.95,215.88,9.5]
[1734529979488,30.0,215.95,215.88,32.11226611]
[1734529979791,52.61226611,215.95,215.88,9.5]
[1734529979970,23.776884,215.97,215.88,9.5]
[1734529979971,30.0,215.92,215.88,9.5]
[1734529980287,52.61226611,215.92,215.88,9.5]
[1734529980668,30.0,215.92,215.88,9.5]
[1734529980878,50.12549,215.89,215.88,9.5]
[1734529981090,96.51464011,215.89,215.88,9.5]
[1734529984762,124.27464011,215.89,215.88,9.5]
[1734529984961,139.04415627,215.89,215.88,9.5]
[1734529986212,111.28415627,215.89,215.88,9.5]
[1734529987988,102.84800885,215.89,215.88,9.5]
[1734529988591,130.60800885,215.89,215.88,9.5]
[1734529988800,58.94563485,215.89,215.88,9.5]
[1734529990172,82.72251885,215.89,215.88,9.5]
[1734529990684,44.17611869,215.89,215.88,9.5]
[1734529992082,67.95300269,215.89,215.88,9.5]
[1734529992773,44.17611869,215.89,215.88,9.5]
[1734529992974,14.17611869,215.89,215.88,9.5]
[1734529995886,68.07849269,215.89,215.88,9.5]
[1734529997008,81.40464807,215.89,215.88,9.5]
[1734529998493,109.16464807,215.89,215.88,9.5]
[1734529999977,57.62776407,215.89,215.88,9.5]
[1734530000199,51.41197535,215.89,215.88,9.5]
[1734530000481,44.17611869,215.89,215.88,9.5]
[1734530002407,51.41197535,215.89,215.88,9.5]
[1734530002606,81.27915807,215.89,215.88,9.5]
[1734530003787,50.12549,215.86,215.85,0.5630446]
[1734530004087,88.07849269,215.86,215.85,0.5630446]
[1734530005402,68.07849269,215.86,215.85,0.5630446]
[1734530005615,30.0,215.86,215.85,0.5630446]
[1734530005780,44.17611869,215.86,215.85,0.5630446]
[1734530006387,30.0,215.86,215.85,0.5630446]
[1734530007319,14.17611869,215.88,215.85,0.5630446]
[1734530007494,51.41197535,215.89,215.85,0.5630446]
[1734530007821,30.0,215.89,215.85,0.5630446]
[1734530008027,14.17611869,215.91,215.85,0.5630446]
[1734530008189,44.17611869,215.92,215.85,14.73916329]
[1734530009310,8.67921744,215.94,215.85,0.5630446]
[1734530009311,30.0,215.89,215.85,0.5630446]
[1734530009496,14.17611869,215.87,215.85,0.5630446]
[1734530010009,14.17611869,215.86,215.85,0.5630446]
[1734530011313,14.30160869,215.88,215.85,0.5630446]
[1734530012332,14.17611869,215.93,215.85,0.5630446]
[1734530012333,14.17611869,215.9,215.85,0.5630446]
[1734530012501,44.17611869,215.92,215.85,14.73916329]
[1734530013334,14.17611869,215.94,215.87,14.17611869]
[1734530014199,6.09029872,215.95,215.89,14.17611869]
[1734530014512,14.17611869,215.96,215.89,14.17611869]
[1734530014924,30.0,215.98,215.92,14.17611869]
[1734530015225,14.17611869,216.03,215.97,6.6007]
[1734530015535,14.17611869,216.04,215.98,1.5974]
[1734530016327,44.17611869,216.05,215.98,15.77351869]
[1734530016530,22.85533613,216.06,215.99,14.17611869]
[1734530016832,14.17611869,216.05,215.98,15.77351869]
[1734530017030,8.67921744,216.06,215.99,14.17611869]
[1734530017031,22.85533613,216.06,215.99,14.17611869]
[1734530017231,8.67921744,216.06,216.0,14.17611869]
[1734530017404,14.17611869,216.07,216.0,14.17611869]
[1734530018428,44.17611869,216.08,216.01,14.17611869]
[1734530018597,14.17611869,216.09,216.03,14.17611869]
[1734530019429,14.17611869,216.1,216.03,14.17611869]
[1734530019737,14.17611869,216.07,216.0,14.17611869]
[1734530020035,14.17611869,216.07,215.98,1.5974]
[1734530020036,14.17611869,216.02,215.98,1.5974]
[1734530020231,0.12549,216.06,215.98,1.5974]
[1734530020471,30.0,216.07,215.98,1.5974]
[1734530020617,14.17611869,216.06,215.99,14.17611869]
[1734530021306,53.92522419,216.21,216.05,14.17611869]
[1734530021518,14.17611869,216.17,216.1,14.17611869]
[1734530021722,44.17611869,216.18,216.1,14.17611869]
[1734530022710,14.17611869,216.17,216.09,14.17611869]
[1734530023016,30.0,216.18,216.11,14.17611869]
[1734530023276,14.17611869,216.2,216.13,14.17611869]
[1734530023747,0.12549,216.2,216.14,14.17611869]
[1734530024037,0.12549,216.2,216.12,22.60223875]
[1734530024038,22.60223875,216.19,216.12,22.60223875]
[1734530024261,22.60223875,216.16,216.11,1.514]
[1734530024636,52.60223875,216.17,216.11,1.514]
[1734530027349,22.60223875,216.16,216.11,1.514]
[1734530027555,22.60223875,216.14,216.07,22.60223875]
[1734530027853,22.60223875,216.13,216.06,22.60223875]
[1734530028179,20.0,216.1,216.05,24.16053875]
[1734530028460,52.60223875,216.07,216.0,22.60223875]
[1734530029750,30.0,216.07,216.01,22.60223875]
[1734530029963,30.0,216.1,216.04,22.60223875]
[1734530030166,22.60223875,216.11,216.04,22.60223875]
[1734530030667,30.0,216.1,216.04,22.60223875]
[1734530030872,52.60223875,216.1,216.03,22.60223875]
[1734530031432,22.60223875,216.09,216.02,22.60223875]
[1734530031663,22.60223875,216.09,215.99,1.6515]
[1734530032042,52.60223875,216.07,215.99,24.25373875]
[1734530032157,22.60223875,216.06,215.99,24.25373875]
[1734530035366,22.60223875,216.05,215.99,1.6515]
[1734530036664,22.60223875,216.06,215.99,24.25373875]
[1734530037465,30.0,216.07,216.01,22.60223875]
[1734530037633,49.16340473,216.16,215.99,1.6515]
[1734530037634,22.60223875,216.11,216.04,22.60223875]
[1734530037857,30.0,216.13,216.07,22.60223875]
[1734530038133,30.0,216.13,216.08,22.60223875]
[1734530038670,22.60223875,216.1,216.03,22.60223875]
[1734530039038,22.60223875,216.11,216.04,22.60223875]
[1734530040041,30.0,216.09,215.99,1.6515]
[1734530040236,30.0,216.09,216.03,22.60223875]
[1734530040861,30.0,216.09,216.0,22.60223875]
[1734530041055,22.60223875,216.07,216.0,22.60223875]
[1734530041261,22.60223875,216.08,216.01,22.60223875]
[1734530043368,22.60223875,216.07,216.0,22.60223875]
[1734530043678,30.0,215.99,215.9,1.5147]
[1734530043876,27.76,216.06,215.9,1.5147]
[1734530043877,52.60223875,215.96,215.9,1.5147]
[1734530044332,22.60223875,215.95,215.9,1.5147]
[1734530044534,30.0,215.96,215.9,1.5147]
[1734530044770,52.60223875,215.96,215.9,1.5147]
[1734530044938,22.60223875,215.94,215.89,6.3227]
[1734530045138,22.60223875,215.94,215.86,22.60223875]
[1734530045340,52.60223875,215.93,215.86,22.60223875]
[1734530045539,52.60223875,215.93,215.85,24.75968335]
[1734530045540,22.60223875,215.92,215.85,24.75968335]
[1734530045839,22.60223875,215.91,215.85,2.1574446]
[1734530046059,22.60223875,215.9,215.85,2.1574446]
[1734530046645,30.0,215.9,215.85,2.1574446]
[1734530047058,22.60223875,215.89,215.85,0.5630446]
[1734530047349,22.60223875,215.86,215.85,0.5630446]
[1734530048483,30.0,215.87,215.85,0.5630446]
[1734530048668,22.60223875,215.9,215.85,0.5630446]
[1734530048987,52.60223875,215.88,215.85,0.5630446]
[1734530049371,52.60223875,215.91,215.85,0.5630446]
[1734530049561,30.0,215.91,215.85,23.16528335]
[1734530049767,23.776884,215.9,215.85,0.5630446]
[1734530050170,52.60223875,215.91,215.85,0.5630446]
[1734530051684,22.60223875,215.92,215.85,23.16528335]
[1734530051907,22.60223875,215.95,215.88,22.60223875]
[1734530052057,30.0,215.94,215.87,22.60223875]
[1734530052284,30.0,215.91,215.85,23.16528335]
[1734530053289,30.0,215.94,215.87,22.60223875]
[1734530053388,22.60223875,215.92,215.85,23.16528335]
[1734530053874,22.60223875,215.93,215.86,22.60223875]
[1734530054279,52.60223875,215.94,215.87,22.60223875]
[1734530055191,52.60223875,215.94,215.86,22.60223875]
[1734530055192,22.60223875,215.93,215.86,22.60223875]
[1734530057203,52.60223875,215.94,215.87,22.60223875]
[1734530057396,30.0,216.0,215.9,24.19263875]
[1734530057577,22.60223875,216.01,215.94,22.60223875]
[1734530057778,30.0,216.03,215.95,22.60223875]
[1734530057779,22.60223875,216.02,215.95,22.60223875]
[1734530058382,22.60223875,215.96,215.85,8.3864446]
[1734530058582,22.60223875,215.9,215.85,8.3864446]
[1734530059002,22.60223875,215.89,215.85,8.3864446]
[1734530059368,22.60223875,215.89,215.85,2.0733446]
[1734530060784,22.60223875,215.93,215.85,24.67558335]
[1734530061094,22.60223875,215.93,215.86,22.60223875]
[1734530061298,22.60223875,215.91,215.85,2.0733446]
[1734530061501,22.60223875,215.9,215.85,2.0733446]
[1734530062025,14.16591162,215.9,215.85,2.0733446]
[1734530062204,14.16591162,215.89,215.85,2.0733446]
[1734530062404,14.16591162,215.91,215.85,2.0733446]
[1734530062608,14.16591162,215.93,215.86,14.16591162]
[1734530062778,14.16591162,215.94,215.86,14.16591162]
[1734530063408,14.16591162,215.95,215.88,14.16591162]
[1734530063909,14.16591162,215.95,215.87,14.16591162]
[1734530064215,14.16591162,215.94,215.86,14.16591162]
[1734530064985,14.16591162,215.94,215.85,2.0733446]
[1734530064986,37.5550451,216.02,215.92,14.16591162]
[1734530065198,14.16591162,216.01,215.93,14.16591162]
[1734530065395,14.16591162,216.01,215.94,14.16591162]
[1734530065799,14.16591162,216.02,215.94,14.16591162]
[1734530066108,14.16591162,216.0,215.93,14.16591162]
[1734530066518,14.16591162,216.0,215.92,6.0512]
[1734530066519,14.16591162,215.99,215.92,6.0512]
[1734530066814,14.16591162,216.0,215.92,20.21711162]
[1734530067117,14.16591162,216.0,215.93,14.16591162]
[1734530067925,14.16591162,216.01,215.93,14.16591162]
[1734530068422,14.16591162,216.01,215.94,14.16591162]
[1734530068995,14.16591162,216.05,215.97,14.16591162]
[1734530069311,14.16591162,216.0,215.93,15.81381162]
[1734530069518,14.16591162,215.99,215.93,1.6479]
[1734530069889,0.12549,216.03,215.93,15.81381162]
[1734530070131,14.16591162,215.99,215.93,1.6479]
[1734530071419,14.16591162,216.0,215.93,15.81381162]
[1734530072024,30.0,216.07,215.97,14.16591162]
[1734530072188,14.16591162,216.05,215.98,14.16591162]
[1734530072898,14.16591162,216.04,215.97,14.16591162]
[1734530073714,14.16591162,216.03,215.96,14.16591162]
[1734530073915,14.16591162,216.01,215.94,14.16591162]
[1734530075497,14.16591162,216.04,215.97,14.16591162]
[1734530075707,14.16591162,216.02,215.95,14.16591162]
[1734530076592,14.16591162,216.03,215.96,14.16591162]
[1734530077024,14.16591162,216.02,215.95,14.16591162]
[1734530077230,14.16591162,216.02,215.94,14.16591162]
[1734530078406,14.16591162,216.02,215.95,14.16591162]
[1734530080346,14.16591162,216.03,215.96,14.16591162]
[1734530081542,14.16591162,216.02,215.95,14.16591162]
[1734530082053,14.16591162,216.03,215.96,14.16591162]
[1734530082251,14.16591162,216.03,215.95,14.16591162]
[1734530082612,14.16591162,216.07,216.0,14.16591162]
[1734530082948,14.16591162,216.03,215.96,14.86026549]
[1734530083234,0.12549,216.04,215.93,1.6479]
[1734530083449,7.67953009,216.04,215.93,1.6479]
[1734530084752,14.16591162,215.97,215.93,1.6479]
[1734530084946,14.16591162,215.94,215.88,1.5905]
[1734530085123,14.16591162,215.92,215.88,1.5905]
[1734530085447,14.16591162,215.91,215.88,1.5905]
[1734530086020,14.16591162,215.92,215.88,1.5905]
[1734530086202,14.16591162,215.94,215.88,1.5905]
[1734530086754,14.16591162,215.93,215.88,1.5905]
[1734530087798,14.16591162,215.94,215.88,1.5905]
[1734530088632,14.16591162,215.92,215.88,1.5905]
[1734530089132,14.16591162,215.93,215.88,1.5905]
[1734530089305,14.16591162,215.94,215.88,1.5905]
[1734530089507,14.16591162,215.96,215.88,15.75641162]
[1734530089707,14.16591162,215.96,215.89,14.16591162]
[1734530089934,14.16591162,215.9,215.85,0.5630446]
[1734530090300,14.16591162,215.91,215.85,0.5630446]
[1734530090905,14.16591162,215.9,215.85,0.5630446]
[1734530092899,14.16591162,215.91,215.85,0.5630446]
[1734530093134,14.16591162,215.93,215.85,14.72895622]
[1734530093312,14.16591162,215.92,215.85,14.72895622]
[1734530094334,14.16591162,215.94,215.86,14.16591162]
[1734530094914,14.16591162,215.94,215.85,14.72895622]
[1734530095252,14.16591162,215.93,215.85,14.72895622]
[1734530096906,14.16591162,215.91,215.85,0.5630446]
[1734530098545,14.16591162,215.87,215.85,0.5630446]
[1734530098707,44.16591162,215.88,215.85,0.5630446]
[1734530099057,14.16591162,215.9,215.85,0.5630446]
[1734530099428,44.16591162,215.91,215.85,0.5630446]
[1734530099615,14.16591162,215.9,215.85,0.5630446]
[1734530100016,14.16591162,215.89,215.85,0.5630446]
[1734530100241,44.16591162,215.88,215.85,0.5630446]
[1734530100434,14.16591162,215.87,215.85,0.5630446]
[1734530100740,44.16591162,215.88,215.85,0.5630446]
[1734530101424,14.16591162,215.87,215.85,0.5630446]
[1734530102337,14.16591162,215.86,215.85,0.5630446]
[1734530102544,14.29140162,215.87,215.85,0.5630446]
[1734530102732,0.12549,215.87,215.85,0.5630446]
[1734530102913,14.29140162,215.87,215.85,0.5630446]
[1734530103846,14.29140162,215.86,215.85,0.5630446]
[1734530104248,38.06828562,215.86,215.85,0.5277446]
[1734530105267,79.70828562,215.86,215.85,0.5277446]
[1734530105421,44.16591162,215.76,215.65,1.5234]
[1734530105626,44.16591162,215.76,215.68,14.16591162]
[1734530105837,44.16591162,215.76,215.67,14.16591162]
[1734530105838,14.16591162,215.74,215.67,14.16591162]
[1734530106048,30.0,215.73,215.66,14.16591162]
[1734530106228,23.776884,215.72,215.66,14.16591162]
[1734530106756,30.0,215.76,215.7,14.16591162]
[1734530106977,30.0,215.76,215.65,1.5234]
[1734530106978,30.0,215.83,215.75,14.16591162]
[1734530107144,30.0,215.83,215.77,14.16591162]
[1734530107485,30.0,215.72,215.63,0.5630446]
[1734530107652,30.0,215.72,215.63,14.72895622]
[1734530108555,14.16591162,215.71,215.64,14.16591162]
[1734530108762,14.16591162,215.69,215.63,0.5630446]
[1734530109134,14.16591162,215.68,215.63,0.5630446]
[1734530109339,14.16591162,215.67,215.63,0.5630446]
[1734530109544,14.16591162,215.68,215.63,0.5630446]
[1734530110275,14.16591162,215.67,215.63,0.5630446]
[1734530112280,14.16591162,215.69,215.63,0.5630446]
[1734530112664,14.16591162,215.73,215.66,14.16591162]
[1734530113237,14.16591162,215.72,215.65,14.16591162]
[1734530113349,14.16591162,215.71,215.64,14.16591162]
[1734530113548,14.16591162,215.7,215.63,14.72895622]
[1734530114357,14.16591162,215.69,215.63,0.5630446]
[1734530114744,14.16591162,215.7,215.63,14.72895622]
[1734530116554,14.16591162,215.73,215.65,14.16591162]
[1734530116856,14.16591162,215.73,215.66,14.16591162]
[1734530117178,14.16591162,215.74,215.67,14.16591162]
[1734530117689,14.16591162,215.73,215.65,14.16591162]
[1734530118571,30.0,215.79,215.67,14.16591162]
[1734530118777,14.16591162,215.77,215.7,14.16591162]
[1734530119249,14.16591162,215.76,215.69,14.16591162]
[1734530119652,14.16591162,215.77,215.7,14.16591162]
[1734530119975,14.16591162,215.79,215.72,14.16591162]
[1734530120648,14.16591162,215.8,215.72,14.16591162]
[1734530120973,14.16591162,215.81,215.74,14.16591162]
[1734530121472,14.16591162,215.8,215.73,14.86105632]
[1734530121693,14.16591162,215.78,215.71,25.75521162]
[1734530121986,14.16591162,215.79,215.72,14.16591162]
[1734530122359,14.16591162,215.8,215.72,14.16591162]
[1734530122873,14.16591162,215.8,215.73,14.16591162]
[1734530124351,14.16591162,215.8,215.72,14.16591162]
[1734530125079,14.16591162,215.8,215.73,14.16591162]
[1734530125616,14.16591162,215.81,215.74,14.16591162]
[1734530126080,14.16591162,215.79,215.72,14.16591162]
[1734530126559,14.16591162,215.8,215.72,14.16591162]
[1734530127070,14.16591162,215.81,215.74,14.16591162]
[1734530127684,14.16591162,215.82,215.74,14.16591162]
[1734530127851,14.16591162,215.82,215.75,14.16591162]
[1734530128052,14.16591162,215.81,215.74,14.16591162]
[1734530128277,14.16591162,215.8,215.73,14.16591162]
[1734530130475,14.16591162,215.81,215.74,14.16591162]
[1734530130984,14.16591162,215.8,215.72,14.16591162]
[1734530131789,14.16591162,215.81,215.74,14.16591162]
[1734530132497,14.16591162,215.82,215.75,14.16591162]
[1734530132946,14.16591162,215.81,215.74,14.16591162]
[1734530133379,14.16591162,215.83,215.76,14.16591162]
[1734530133577,30.0,215.85,215.72,11.5886]
[1734530133578,14.16591162,215.85,215.77,14.16591162]
[1734530134080,14.16591162,215.85,215.78,14.16591162]
[1734530135378,14.16591162,215.87,215.8,14.16591162]
[1734530135679,44.16591162,215.88,215.81,14.16591162]
[1734530136056,14.16591162,215.87,215.8,14.16591162]
[1734530136877,14.16591162,215.86,215.79,14.16591162]
[1734530137074,14.16591162,215.85,215.78,15.72221162]
[1734530137283,14.16591162,215.84,215.78,1.5563]
[1734530137489,14.16591162,215.83,215.76,14.16591162]
[1734530137701,14.16591162,215.82,215.75,14.16591162]
[1734530138574,14.16591162,215.84,215.77,14.16591162]
[1734530138892,14.16591162,215.87,215.79,14.16591162]
[1734530140627,14.16591162,215.86,215.79,14.16591162]
[1734530141306,14.16591162,215.83,215.75,14.16591162]
[1734530141463,14.16591162,215.83,215.76,14.16591162]
[1734530141663,14.16591162,215.83,215.75,14.16591162]
[1734530142900,14.16591162,215.81,215.74,14.16591162]
[1734530143081,14.16591162,215.8,215.73,1.6393]
[1734530144497,14.16591162,215.81,215.74,14.16591162]
[1734530144687,30.0,215.85,215.75,14.16591162]
[1734530144688,14.16591162,215.82,215.75,14.16591162]
[1734530144909,14.16591162,215.84,215.76,14.16591162]
[1734530145198,14.16591162,215.85,215.78,14.16591162]
[1734530147483,44.16591162,215.88,215.8,14.16591162]
[1734530147979,44.16591162,215.88,215.81,14.16591162]
[1734530149596,44.16591162,215.88,215.8,14.16591162]
[1734530149802,14.16591162,215.86,215.79,14.16591162]
[1734530150003,14.16591162,215.86,215.78,14.16591162]
[1734530150210,14.16591162,215.87,215.8,14.16591162]
[1734530150506,14.16591162,215.88,215.81,14.16591162]
[1734530150801,14.16591162,215.84,215.77,14.16591162]
[1734530151105,14.16591162,215.83,215.76,14.16591162]
[1734530151480,14.16591162,215.84,215.77,14.16591162]
[1734530151785,14.16591162,215.83,215.76,14.16591162]
[1734530153178,14.16591162,215.84,215.77,14.16591162]
[1734530153393,14.16591162,215.85,215.78,14.16591162]
[1734530153597,14.16591162,215.84,215.77,14.16591162]
[1734530153897,14.16591162,215.83,215.76,14.16591162]
[1734530154397,30.0,215.86,215.73,1.6393]
[1734530154398,14.16591162,215.82,215.75,14.16591162]
[1734530155226,14.16591162,215.81,215.74,14.16591162]
[1734530155710,14.16591162,215.8,215.73,15.80521162]
[1734530156405,14.16591162,215.82,215.74,14.16591162]
[1734530157315,14.16591162,215.82,215.75,14.16591162]
[1734530158925,14.16591162,215.82,215.74,14.16591162]
[1734530159278,30.0,215.83,215.74,14.16591162]
[1734530159279,14.16591162,215.81,215.74,14.16591162]
[1734530159495,14.16591162,215.8,215.73,15.80521162]
[1734530160345,9.07383839,215.81,215.73,10.71313839]
[1734530160836,9.01807745,215.81,215.74,9.07383839]
[1734530161236,9.07383839,215.83,215.76,9.07383839]
[1734530161397,9.07383839,215.82,215.73,1.6393]
[1734530161626,9.07383839,215.82,215.74,9.07383839]
[1734530162011,9.07383839,215.82,215.73,1.6393]
[1734530162211,9.07383839,215.83,215.76,9.07383839]
[1734530162600,9.07383839,215.83,215.75,9.07383839]
[1734530164065,9.07383839,215.83,215.73,1.6393]
[1734530164332,9.07383839,215.83,215.75,9.07383839]
[1734530165036,9.07383839,215.82,215.74,9.07383839]
[1734530165204,9.07383839,215.81,215.73,10.71313839]
[1734530165397,9.07383839,215.8,215.73,1.6393]
[1734530167351,9.07383839,215.78,215.71,9.07383839]
[1734530167527,9.07383839,215.76,215.68,10.72433839]
[1734530167853,9.07383839,215.75,215.68,1.6505]
[1734530169454,1.72112053,215.81,215.69,9.07383839]
[1734530169455,23.776884,215.79,215.69,9.07383839]